[Event "Early-Titled-Tuesday-Blitz-January-16-2024"]
[Site "Chess.com"]
[Date "2024.01.16"]
[Round "2"]
[White "NastyaHn"]
[Black "SharapovEvgeny"]
[Result "0-1"]
[WhiteElo "2296"]
[BlackElo "2538"]
[TimeControl "180+1"]
[EndTime "8:19:45 PST"]
[Termination "SharapovEvgeny won by resignation"]

1. e4 {[%clk 0:02:59.9]} 1... c5 {[%clk 0:03:00.1]} 2. Nf3 {[%clk 0:02:59.6]}
2... d6 {[%clk 0:03:00.3]} 3. d4 {[%clk 0:02:59.7]} 3... cxd4 {[%clk 0:03:00.8]}
4. Nxd4 {[%clk 0:03:00.1]} 4... Nf6 {[%clk 0:03:00.9]} 5. Nc3 {[%clk 0:03:00.5]}
5... Nc6 {[%clk 0:03:01.3]} 6. Bg5 {[%clk 0:02:59.2]} 6... e6 {[%clk 0:03:01.4]}
7. Qd2 {[%clk 0:02:59.5]} 7... Be7 {[%clk 0:03:02]} 8. O-O-O {[%clk 0:02:59.4]}
8... O-O {[%clk 0:03:02.5]} 9. f3 {[%clk 0:02:59.4]} 9... Nxd4 {[%clk
0:03:01.3]} 10. Qxd4 {[%clk 0:02:58.3]} 10... Qa5 {[%clk 0:03:02]} 11. Bd2
{[%clk 0:02:57.1]} 11... Qc5 {[%clk 0:03:00.1]} 12. Qxc5 {[%clk 0:02:51.1]}
12... dxc5 {[%clk 0:03:00.1]} 13. Be3 {[%clk 0:02:51.5]} 13... a6 {[%clk
0:02:53.6]} 14. a4 {[%clk 0:02:50.6]} 14... b6 {[%clk 0:02:42.2]} 15. g4 {[%clk
0:02:50.6]} 15... Rd8 {[%clk 0:02:37.8]} 16. Be2 {[%clk 0:02:49.9]} 16... Bb7
{[%clk 0:02:35.5]} 17. g5 {[%clk 0:02:50.1]} 17... Nd7 {[%clk 0:02:32.4]} 18. h4
{[%clk 0:02:49.8]} 18... Ne5 {[%clk 0:02:28.6]} 19. Bf4 {[%clk 0:02:46.8]} 19...
Nc6 {[%clk 0:02:16.5]} 20. Bc7 {[%clk 0:02:45.3]} 20... Rxd1+ {[%clk 0:02:15.6]}
21. Rxd1 {[%clk 0:02:44.7]} 21... Bd8 {[%clk 0:02:13.6]} 22. Rd7 {[%clk
0:02:33.3]} 22... Bxc7 {[%clk 0:02:06.5]} 23. Rxc7 {[%clk 0:02:33.4]} 23... Rb8
{[%clk 0:02:06.8]} 24. Bxa6 {[%clk 0:02:16.5]} 24... Bxa6 {[%clk 0:02:05]} 25.
Rxc6 {[%clk 0:02:16.9]} 25... Bf1 {[%clk 0:01:50.6]} 26. a5 {[%clk 0:02:07.8]}
26... bxa5 {[%clk 0:01:48.6]} 27. Rxc5 {[%clk 0:02:08]} 27... Ra8 {[%clk
0:01:45.3]} 28. Kd2 {[%clk 0:01:59.4]} 28... h6 {[%clk 0:01:43.4]} 29. Ke3
{[%clk 0:01:58.6]} 29... hxg5 {[%clk 0:01:43.4]} 30. hxg5 {[%clk 0:01:57.6]}
30... Kh7 {[%clk 0:01:43.3]} 31. f4 {[%clk 0:01:56.5]} 31... Kg6 {[%clk
0:01:41.7]} 32. Na4 {[%clk 0:01:39.1]} 32... f6 {[%clk 0:01:24.7]} 33. b3 {[%clk
0:01:22.1]} 33... e5 {[%clk 0:01:17.9]} 34. fxe5 {[%clk 0:01:12.2]} 34... fxg5
{[%clk 0:01:17.2]} 35. Nb6 {[%clk 0:01:04.1]} 35... Ra6 {[%clk 0:01:11.3]} 36.
Nd5 {[%clk 0:01:01.2]} 36... Bh3 {[%clk 0:01:04.6]} 37. Rc6+ {[%clk 0:00:38.7]}
37... Rxc6 {[%clk 0:01:03.3]} 38. Ne7+ {[%clk 0:00:38.8]} 38... Kh5 {[%clk
0:00:54.9]} 39. Nxc6 {[%clk 0:00:37.8]} 39... Kh4 {[%clk 0:00:55.5]} 40. Kf2
{[%clk 0:00:35.1]} 40... g4 {[%clk 0:00:52.5]} 41. Nd4 {[%clk 0:00:28.4]} 41...
g3+ {[%clk 0:00:52.5]} 42. Kg1 {[%clk 0:00:15.2]} 42... Kg5 {[%clk 0:00:45.2]}
43. e6 {[%clk 0:00:12.6]} 43... Kf6 {[%clk 0:00:39.7]} 44. Ne2 {[%clk
0:00:07.9]} 44... Bxe6 {[%clk 0:00:29]} 45. Nxg3 {[%clk 0:00:07.6]} 45... Ke5
{[%clk 0:00:29.4]} 46. Kf2 {[%clk 0:00:07.7]} 46... Kd4 {[%clk 0:00:19.6]} 47.
Ke2 {[%clk 0:00:05.3]} 47... Kc3 {[%clk 0:00:18.4]} 48. Kd1 {[%clk 0:00:05.6]}
48... g5 {[%clk 0:00:15.8]} 49. Ne2+ {[%clk 0:00:05.2]} 49... Kb2 {[%clk
0:00:11.5]} 50. Kd2 {[%clk 0:00:05.6]} 50... g4 {[%clk 0:00:10.5]} 51. e5 {[%clk
0:00:05.4]} 51... Bf5 {[%clk 0:00:07.9]} 52. c4 {[%clk 0:00:02.7]} 52... Bc8
{[%clk 0:00:04.1]} 53. Nd4 {[%clk 0:00:01.9]} 53... g3 {[%clk 0:00:03.8]} 54.
Ke3 {[%clk 0:00:02.2]} 54... g2 {[%clk 0:00:04]} 55. Kf2 {[%clk 0:00:02.6]}
55... Kc3 {[%clk 0:00:04.6]} 56. e6 {[%clk 0:00:02.5]} 56... Kxd4 {[%clk
0:00:04.1]} 57. e7 {[%clk 0:00:03]} 57... Bd7 {[%clk 0:00:04.8]} 58. Kxg2 {[%clk
0:00:03.4]} 58... Kc3 {[%clk 0:00:04.2]} 59. c5 {[%clk 0:00:02.9]} 59... Kxb3
{[%clk 0:00:03.9]} 60. Kf3 {[%clk 0:00:02.8]} 60... a4 {[%clk 0:00:04.4]} 61.
Ke4 {[%clk 0:00:03.2]} 61... a3 {[%clk 0:00:04.9]} 62. Kd5 {[%clk 0:00:03.7]}
62... a2 {[%clk 0:00:05.1]} 63. Kd6 {[%clk 0:00:04.3]} 63... Be8 {[%clk
0:00:04.8]} 64. c6 {[%clk 0:00:03.9]} 64... a1=Q {[%clk 0:00:05.1]} 65. c7
{[%clk 0:00:04.4]} 65... Qd4+ {[%clk 0:00:05.3]} 0-1

[Event "Early-Titled-Tuesday-Blitz-January-16-2024"]
[Site "Chess.com"]
[Date "2024.01.16"]
[Round "2"]
[White "Nechitaylo_Nikita"]
[Black "Triumphmate"]
[Result "1-0"]
[WhiteElo "2304"]
[BlackElo "2518"]
[TimeControl "180+1"]
[EndTime "8:19:50 PST"]
[Termination "Nechitaylo_Nikita won by checkmate"]

1. d4 {[%clk 0:03:00.9]} 1... d5 {[%clk 0:02:57.7]} 2. c4 {[%clk 0:03:01.1]}
2... e6 {[%clk 0:02:54.7]} 3. Nc3 {[%clk 0:03:00.4]} 3... c6 {[%clk 0:02:41.4]}
4. Nf3 {[%clk 0:02:56.5]} 4... f5 {[%clk 0:02:40.6]} 5. Ne5 {[%clk 0:02:45.7]}
5... Nf6 {[%clk 0:02:18.7]} 6. Bg5 {[%clk 0:02:34]} 6... Bd6 {[%clk 0:02:16]} 7.
f4 {[%clk 0:02:31.2]} 7... O-O {[%clk 0:02:13.3]} 8. e3 {[%clk 0:02:30.2]} 8...
Qe8 {[%clk 0:02:04.9]} 9. Be2 {[%clk 0:02:26.4]} 9... Ne4 {[%clk 0:02:03.6]} 10.
Nxe4 {[%clk 0:02:17.3]} 10... fxe4 {[%clk 0:02:04.5]} 11. O-O {[%clk 0:02:14.4]}
11... Nd7 {[%clk 0:02:03.4]} 12. cxd5 {[%clk 0:01:21.4]} 12... exd5 {[%clk
0:01:59.1]} 13. Bh5 {[%clk 0:01:04.5]} 13... g6 {[%clk 0:01:49.9]} 14. Bg4
{[%clk 0:01:04.8]} 14... Nxe5 {[%clk 0:01:46.5]} 15. fxe5 {[%clk 0:01:03.1]}
15... Rxf1+ {[%clk 0:01:45.5]} 16. Kxf1 {[%clk 0:01:03.1]} 16... Bxg4 {[%clk
0:01:44.4]} 17. Qxg4 {[%clk 0:01:04]} 17... Bb4 {[%clk 0:01:43.8]} 18. Kg1
{[%clk 0:00:56]} 18... Qc8 {[%clk 0:01:36]} 19. e6 {[%clk 0:00:47.8]} 19... Qc7
{[%clk 0:01:34]} 20. Rf1 {[%clk 0:00:19.9]} 20... Rf8 {[%clk 0:01:27]} 21. Rxf8+
{[%clk 0:00:15.6]} 21... Bxf8 {[%clk 0:01:27.9]} 22. e7 {[%clk 0:00:11.7]} 22...
Bxe7 {[%clk 0:01:20.8]} 23. Qe6+ {[%clk 0:00:12.2]} 23... Kf8 {[%clk 0:01:21.2]}
24. Bh6+ {[%clk 0:00:12.8]} 24... Ke8 {[%clk 0:01:19.9]} 25. Qg8+ {[%clk
0:00:13.4]} 25... Kd7 {[%clk 0:01:19.4]} 26. Qxh7 {[%clk 0:00:14.1]} 26... Qa5
{[%clk 0:01:16.8]} 27. h3 {[%clk 0:00:10.2]} 27... Qd2 {[%clk 0:01:11.7]} 28.
Bg5 {[%clk 0:00:07.4]} 28... Qb4 {[%clk 0:01:04.5]} 29. h4 {[%clk 0:00:05.2]}
29... Kd8 {[%clk 0:00:56]} 30. Qxg6 {[%clk 0:00:04.8]} 30... Bxg5 {[%clk
0:00:51.1]} 31. Qxg5+ {[%clk 0:00:05.7]} 31... Kc7 {[%clk 0:00:51.3]} 32. h5
{[%clk 0:00:06.2]} 32... Kb6 {[%clk 0:00:44.2]} 33. h6 {[%clk 0:00:06.5]} 33...
Qe1+ {[%clk 0:00:40.7]} 34. Kh2 {[%clk 0:00:06.4]} 34... Qf2 {[%clk 0:00:41.6]}
35. h7 {[%clk 0:00:04.1]} 35... Qf8 {[%clk 0:00:42.2]} 36. Qg8 {[%clk
0:00:02.7]} 36... Qh6+ {[%clk 0:00:42.7]} 37. Kg1 {[%clk 0:00:02.6]} 37... Qxe3+
{[%clk 0:00:43.6]} 38. Kh2 {[%clk 0:00:03.3]} 38... Qh6+ {[%clk 0:00:41.7]} 39.
Kg1 {[%clk 0:00:04]} 39... Qe3+ {[%clk 0:00:38.9]} 40. Kf1 {[%clk 0:00:04.7]}
40... Qc1+ {[%clk 0:00:36.8]} 41. Kf2 {[%clk 0:00:03.8]} 41... Qd2+ {[%clk
0:00:37.3]} 42. Kg3 {[%clk 0:00:04]} 42... Qe3+ {[%clk 0:00:35.3]} 43. Kg4
{[%clk 0:00:04.6]} 43... Qe2+ {[%clk 0:00:35.9]} 44. Kf5 {[%clk 0:00:05.3]}
44... Qf2+ {[%clk 0:00:36.3]} 45. Ke6 {[%clk 0:00:04.9]} 45... Qxd4 {[%clk
0:00:35.8]} 46. h8=Q {[%clk 0:00:03.7]} 46... Qd2 {[%clk 0:00:31.5]} 47. Qd8+
{[%clk 0:00:03.8]} 47... Ka6 {[%clk 0:00:30.7]} 48. Qh3 {[%clk 0:00:04.4]} 48...
e3 {[%clk 0:00:29.8]} 49. Qdh4 {[%clk 0:00:02.1]} 49... d4 {[%clk 0:00:27.1]}
50. Qe4 {[%clk 0:00:01.6]} 50... Qxb2 {[%clk 0:00:22.7]} 51. Qhf3 {[%clk
0:00:02.2]} 51... Qxa2+ {[%clk 0:00:22.4]} 52. Kf6 {[%clk 0:00:02.5]} 52... Qc4
{[%clk 0:00:20.5]} 53. Qg3 {[%clk 0:00:01.8]} 53... e2 {[%clk 0:00:19.7]} 54.
Qe1 {[%clk 0:00:01.6]} 54... b5 {[%clk 0:00:12.6]} 55. Q4xe2 {[%clk 0:00:01.8]}
55... Qc3 {[%clk 0:00:13.4]} 56. Qxc3 {[%clk 0:00:01.7]} 56... dxc3 {[%clk
0:00:14]} 57. Qa2+ {[%clk 0:00:02.5]} 57... Kb6 {[%clk 0:00:13.8]} 58. Qb3
{[%clk 0:00:03.3]} 58... a5 {[%clk 0:00:12.5]} 59. Qxc3 {[%clk 0:00:03.7]} 59...
a4 {[%clk 0:00:13.2]} 60. Qd4+ {[%clk 0:00:03.1]} 60... Ka5 {[%clk 0:00:14.1]}
61. Qa7+ {[%clk 0:00:02.8]} 61... Kb4 {[%clk 0:00:14.2]} 62. g4 {[%clk
0:00:03.7]} 62... c5 {[%clk 0:00:13.3]} 63. g5 {[%clk 0:00:04.6]} 63... c4
{[%clk 0:00:14.2]} 64. g6 {[%clk 0:00:05.3]} 64... Kb3 {[%clk 0:00:15.1]} 65. g7
{[%clk 0:00:05.7]} 65... b4 {[%clk 0:00:16]} 66. g8=Q {[%clk 0:00:06.4]} 66...
a3 {[%clk 0:00:16.6]} 67. Qc5 {[%clk 0:00:06.3]} 67... Kb2 {[%clk 0:00:17]} 68.
Qcxc4 {[%clk 0:00:06.9]} 68... b3 {[%clk 0:00:17]} 69. Qxb3+ {[%clk 0:00:07.3]}
69... Kc1 {[%clk 0:00:17.9]} 70. Qg2 {[%clk 0:00:06]} 70... a2 {[%clk 0:00:18]}
71. Qbc2# {[%clk 0:00:06.6]} 1-0

[Event "Early-Titled-Tuesday-Blitz-January-16-2024"]
[Site "Chess.com"]
[Date "2024.01.16"]
[Round "2"]
[White "SantoBlue"]
[Black "Tiqr777"]
[Result "1-0"]
[WhiteElo "2936"]
[BlackElo "2609"]
[TimeControl "180+1"]
[EndTime "8:19:51 PST"]
[Termination "SantoBlue won by resignation"]

1. e4 {[%clk 0:03:00.9]} 1... c5 {[%clk 0:02:59.1]} 2. Nc3 {[%clk 0:02:57.2]}
2... e6 {[%clk 0:02:58]} 3. Nf3 {[%clk 0:02:56]} 3... a6 {[%clk 0:02:57.5]} 4.
d4 {[%clk 0:02:56.2]} 4... cxd4 {[%clk 0:02:57.7]} 5. Nxd4 {[%clk 0:02:57.1]}
5... Qc7 {[%clk 0:02:58.2]} 6. g3 {[%clk 0:02:57.5]} 6... Nf6 {[%clk 0:02:57.4]}
7. Bg2 {[%clk 0:02:57.6]} 7... Nc6 {[%clk 0:02:57.9]} 8. O-O {[%clk 0:02:57.4]}
8... Be7 {[%clk 0:02:58.4]} 9. Nb3 {[%clk 0:02:46.5]} 9... O-O {[%clk
0:02:57.9]} 10. a4 {[%clk 0:02:46.6]} 10... d6 {[%clk 0:02:53.8]} 11. a5 {[%clk
0:02:43.7]} 11... Ne5 {[%clk 0:02:50.2]} 12. Kh1 {[%clk 0:02:35.8]} 12... Nc4
{[%clk 0:02:50.5]} 13. f4 {[%clk 0:02:34.8]} 13... Rb8 {[%clk 0:02:48.7]} 14. g4
{[%clk 0:02:34.9]} 14... b5 {[%clk 0:02:35.6]} 15. axb6 {[%clk 0:02:34.5]} 15...
Rxb6 {[%clk 0:02:35.5]} 16. g5 {[%clk 0:02:35.2]} 16... Nd7 {[%clk 0:02:35.8]}
17. f5 {[%clk 0:02:21.4]} 17... Re8 {[%clk 0:02:24.5]} 18. Ra4 {[%clk
0:02:07.4]} 18... Nde5 {[%clk 0:02:22.7]} 19. f6 {[%clk 0:01:58.2]} 19... Bf8
{[%clk 0:02:22.4]} 20. fxg7 {[%clk 0:01:50.7]} 20... Bxg7 {[%clk 0:02:22.7]} 21.
Ne2 {[%clk 0:01:43.3]} 21... Bd7 {[%clk 0:02:18.4]} 22. Ra2 {[%clk 0:01:36]}
22... Bc6 {[%clk 0:02:17.4]} 23. Ng3 {[%clk 0:01:35.7]} 23... Qb7 {[%clk
0:02:13.5]} 24. Nd4 {[%clk 0:01:33.5]} 24... Nxb2 {[%clk 0:02:06.6]} 25. Bxb2
{[%clk 0:01:26]} 25... Rxb2 {[%clk 0:02:07.1]} 26. Rxb2 {[%clk 0:01:26.7]} 26...
Qxb2 {[%clk 0:02:07.4]} 27. Nxc6 {[%clk 0:01:27.6]} 27... Nxc6 {[%clk 0:02:08]}
28. Qxd6 {[%clk 0:01:28.5]} 28... Qxc2 {[%clk 0:01:57.8]} 29. Nh5 {[%clk
0:01:24.7]} 29... Qc3 {[%clk 0:01:38.1]} 30. Qc7 {[%clk 0:01:10.8]} 30... Ne7
{[%clk 0:01:23.1]} 31. Qf4 {[%clk 0:01:05.8]} 31... Rf8 {[%clk 0:01:19.7]} 32.
Nf6+ {[%clk 0:01:06.4]} 32... Kh8 {[%clk 0:01:07.7]} 33. Qh4 {[%clk 0:00:51.5]}
33... Bxf6 {[%clk 0:01:04.6]} 34. gxf6 {[%clk 0:00:29.5]} 34... Ng6 {[%clk
0:01:04.8]} 35. Qh6 {[%clk 0:00:29.8]} 35... Rg8 {[%clk 0:01:05.2]} 36. h3
{[%clk 0:00:26.9]} 36... a5 {[%clk 0:01:00.8]} 37. Qg5 {[%clk 0:00:15.3]} 37...
a4 {[%clk 0:00:57.4]} 38. Rc1 {[%clk 0:00:15.9]} 38... Qb2 {[%clk 0:00:49.5]}
39. Rc7 {[%clk 0:00:14.4]} 39... Qa1+ {[%clk 0:00:31.8]} 40. Kh2 {[%clk
0:00:14.7]} 40... Qe5+ {[%clk 0:00:32.4]} 41. Qxe5 {[%clk 0:00:14.7]} 41... Nxe5
{[%clk 0:00:33.2]} 42. Ra7 {[%clk 0:00:15.4]} 42... Rg6 {[%clk 0:00:33.3]} 43.
Ra8+ {[%clk 0:00:15.8]} 43... Rg8 {[%clk 0:00:32.3]} 44. Rxa4 {[%clk 0:00:16.7]}
44... Nd7 {[%clk 0:00:22.1]} 45. Ra7 {[%clk 0:00:16.8]} 45... Nxf6 {[%clk
0:00:20.4]} 46. Rxf7 {[%clk 0:00:17.3]} 46... Rg6 {[%clk 0:00:15.8]} 47. e5
{[%clk 0:00:13.6]} 47... Nh5 {[%clk 0:00:15.8]} 48. Be4 {[%clk 0:00:12.2]} 48...
Rh6 {[%clk 0:00:15.8]} 49. h4 {[%clk 0:00:08.2]} 49... Kg8 {[%clk 0:00:15.8]}
50. Rf1 {[%clk 0:00:04.2]} 50... Ng7 {[%clk 0:00:16.2]} 51. Kh3 {[%clk
0:00:04.2]} 51... Rh5 {[%clk 0:00:16.1]} 52. Re1 {[%clk 0:00:03]} 52... Kf8
{[%clk 0:00:14.9]} 53. Bd3 {[%clk 0:00:03.2]} 53... Ke7 {[%clk 0:00:13.3]} 54.
Kg4 {[%clk 0:00:02.3]} 54... Rh6 {[%clk 0:00:11.6]} 55. Ra1 {[%clk 0:00:02.9]}
55... Nf5 {[%clk 0:00:11.2]} 56. Ra7+ {[%clk 0:00:03.8]} 56... Kd8 {[%clk
0:00:11]} 57. Bxf5 {[%clk 0:00:03.6]} 57... exf5+ {[%clk 0:00:11.8]} 58. Kg5
{[%clk 0:00:03.6]} 58... Rg6+ {[%clk 0:00:09.2]} 59. Kxf5 {[%clk 0:00:03.8]}
59... Rh6 {[%clk 0:00:09.6]} 60. Kg5 {[%clk 0:00:02.8]} 60... Rg6+ {[%clk
0:00:09.8]} 61. Kf5 {[%clk 0:00:03.4]} 61... Rh6 {[%clk 0:00:10.2]} 62. Ra4
{[%clk 0:00:02.6]} 62... Ke7 {[%clk 0:00:10]} 63. Kg5 {[%clk 0:00:01.7]} 63...
Rg6+ {[%clk 0:00:10]} 64. Kf5 {[%clk 0:00:02.4]} 64... Rh6 {[%clk 0:00:10.7]}
65. Re4 {[%clk 0:00:02.7]} 65... Rh5+ {[%clk 0:00:10.6]} 66. Kg4 {[%clk
0:00:03.4]} 66... Rh6 {[%clk 0:00:11.1]} 67. h5 {[%clk 0:00:04.1]} 67... Ke6
{[%clk 0:00:10.9]} 68. Kg5 {[%clk 0:00:04.7]} 1-0

[Event "Early-Titled-Tuesday-Blitz-January-16-2024"]
[Site "Chess.com"]
[Date "2024.01.16"]
[Round "2"]
[White "cthulhuuu"]
[Black "brm72"]
[Result "0-1"]
[WhiteElo "2419"]
[BlackElo "2705"]
[TimeControl "180+1"]
[EndTime "8:19:51 PST"]
[Termination "brm72 won by checkmate"]

1. e4 {[%clk 0:03:00.1]} 1... c5 {[%clk 0:02:59.8]} 2. Nf3 {[%clk 0:03:00.4]}
2... Nc6 {[%clk 0:02:59.7]} 3. g3 {[%clk 0:03:00.6]} 3... g6 {[%clk 0:02:55.8]}
4. Bg2 {[%clk 0:03:01.2]} 4... Bg7 {[%clk 0:02:55.3]} 5. O-O {[%clk 0:03:01.7]}
5... e6 {[%clk 0:02:55.9]} 6. d3 {[%clk 0:03:01.8]} 6... Nge7 {[%clk 0:02:56]}
7. c3 {[%clk 0:03:01.2]} 7... O-O {[%clk 0:02:55.9]} 8. d4 {[%clk 0:03:01.3]}
8... cxd4 {[%clk 0:02:50.3]} 9. cxd4 {[%clk 0:03:02.2]} 9... d5 {[%clk 0:02:49]}
10. e5 {[%clk 0:03:02.5]} 10... b6 {[%clk 0:02:46.3]} 11. Nc3 {[%clk 0:03:01.6]}
11... Ba6 {[%clk 0:02:46.5]} 12. Re1 {[%clk 0:02:58.1]} 12... Rc8 {[%clk
0:02:46.1]} 13. Qa4 {[%clk 0:02:49]} 13... Bb7 {[%clk 0:02:38.9]} 14. Nb5 {[%clk
0:02:42.1]} 14... Qd7 {[%clk 0:02:31.3]} 15. Nd6 {[%clk 0:02:30.8]} 15... Rb8
{[%clk 0:02:30.5]} 16. Nxb7 {[%clk 0:02:25.4]} 16... Qxb7 {[%clk 0:02:29.3]} 17.
Bf4 {[%clk 0:02:15.9]} 17... b5 {[%clk 0:02:24.1]} 18. Qa3 {[%clk 0:02:06]}
18... Rfc8 {[%clk 0:02:19.4]} 19. Rac1 {[%clk 0:01:57.6]} 19... Bf8 {[%clk
0:02:18]} 20. Qd3 {[%clk 0:01:44.6]} 20... Nb4 {[%clk 0:02:12.1]} 21. Qb1 {[%clk
0:01:44.1]} 21... Rxc1 {[%clk 0:01:53]} 22. Rxc1 {[%clk 0:01:45]} 22... Rc8
{[%clk 0:01:52.3]} 23. Rc3 {[%clk 0:00:33.9]} 23... a6 {[%clk 0:01:17.8]} 24.
Bf1 {[%clk 0:00:32.8]} 24... Nbc6 {[%clk 0:00:55]} 25. g4 {[%clk 0:00:27.6]}
25... Na5 {[%clk 0:00:54.3]} 26. Qc1 {[%clk 0:00:27.4]} 26... Rxc3 {[%clk
0:00:51.5]} 27. Qxc3 {[%clk 0:00:26.9]} 27... Nec6 {[%clk 0:00:51.4]} 28. b3
{[%clk 0:00:20.7]} 28... Bb4 {[%clk 0:00:48.2]} 29. Qe3 {[%clk 0:00:19.7]} 29...
Qb6 {[%clk 0:00:39.5]} 30. Bg5 {[%clk 0:00:19.4]} 30... Bf8 {[%clk 0:00:36.6]}
31. Bf6 {[%clk 0:00:18.6]} 31... Nb8 {[%clk 0:00:34.7]} 32. Qf4 {[%clk
0:00:17.7]} 32... h6 {[%clk 0:00:28.2]} 33. Bd3 {[%clk 0:00:14.1]} 33... Nac6
{[%clk 0:00:25.7]} 34. h4 {[%clk 0:00:13.4]} 34... Nd7 {[%clk 0:00:23.1]} 35. h5
{[%clk 0:00:13.8]} 35... Nxf6 {[%clk 0:00:17.2]} 36. Qxf6 {[%clk 0:00:09]} 36...
Bg7 {[%clk 0:00:16.5]} 37. Qf4 {[%clk 0:00:08.2]} 37... g5 {[%clk 0:00:17.1]}
38. Nxg5 {[%clk 0:00:08.4]} 38... hxg5 {[%clk 0:00:18]} 39. Qxg5 {[%clk
0:00:08.9]} 39... Qxd4 {[%clk 0:00:14.5]} 40. h6 {[%clk 0:00:08.6]} 40... Qxe5
{[%clk 0:00:15.1]} 41. Qxg7+ {[%clk 0:00:02.8]} 41... Qxg7 {[%clk 0:00:16]} 42.
hxg7 {[%clk 0:00:03.3]} 42... Kxg7 {[%clk 0:00:16.6]} 43. f4 {[%clk 0:00:03.2]}
43... Nb4 {[%clk 0:00:16.1]} 44. Bb1 {[%clk 0:00:02.9]} 44... f6 {[%clk
0:00:16.3]} 45. Kf2 {[%clk 0:00:03.4]} 45... e5 {[%clk 0:00:16.8]} 46. Ke3
{[%clk 0:00:04.3]} 46... Nc6 {[%clk 0:00:15.1]} 47. g5 {[%clk 0:00:04.6]} 47...
Kf7 {[%clk 0:00:13.7]} 48. gxf6 {[%clk 0:00:04.7]} 48... Kxf6 {[%clk 0:00:14.6]}
49. fxe5+ {[%clk 0:00:05.2]} 49... Kxe5 {[%clk 0:00:14.9]} 50. a3 {[%clk
0:00:04.5]} 50... a5 {[%clk 0:00:13.8]} 51. Kd2 {[%clk 0:00:04.3]} 51... b4
{[%clk 0:00:13.9]} 52. axb4 {[%clk 0:00:03.8]} 52... axb4 {[%clk 0:00:14.8]} 53.
Kd3 {[%clk 0:00:03.9]} 53... Ne7 {[%clk 0:00:14.4]} 54. Ke3 {[%clk 0:00:04.2]}
54... Nc8 {[%clk 0:00:12.9]} 55. Kd3 {[%clk 0:00:04.3]} 55... Nb6 {[%clk
0:00:12.6]} 56. Ke3 {[%clk 0:00:04.6]} 56... Nd7 {[%clk 0:00:13.3]} 57. Kd3
{[%clk 0:00:05]} 57... Nc5+ {[%clk 0:00:13.8]} 58. Kc2 {[%clk 0:00:05.4]} 58...
Kd4 {[%clk 0:00:13.9]} 59. Kb2 {[%clk 0:00:05]} 59... Ke3 {[%clk 0:00:12]} 60.
Bh7 {[%clk 0:00:02.8]} 60... d4 {[%clk 0:00:12.2]} 61. Bg8 {[%clk 0:00:02.1]}
61... d3 {[%clk 0:00:12.5]} 62. Kc1 {[%clk 0:00:02.6]} 62... d2+ {[%clk
0:00:10.8]} 63. Kd1 {[%clk 0:00:02.7]} 63... Ne4 {[%clk 0:00:11.1]} 64. Bc4
{[%clk 0:00:01.5]} 64... Nc3+ {[%clk 0:00:11]} 65. Kc2 {[%clk 0:00:01.6]} 65...
d1=Q+ {[%clk 0:00:11.7]} 66. Kb2 {[%clk 0:00:02.4]} 66... Qb1# {[%clk
0:00:12.3]} 0-1